fUSD/lending_fUSD_20250226
["ID","MTS","AMOUNT","RATE_DAILY","PERIOD"]
[354554832,1740574243800,-500.0,0.00041095,14]
[354554833,1740574243809,-500.0,0.00041095,14]
[354554834,1740574243819,-936.41,0.00041095,14]
[354554836,1740574243829,-501.56737192,0.00041095,14]
[354554837,1740574243838,-514.96273542,0.00041095,14]
[354554838,1740574243850,-500.0,0.00041095,14]
[354554840,1740574243860,-500.0,0.00041095,14]
[354554841,1740574243870,-500.0,0.00041095,14]
[354554843,1740574243879,-905.42,0.00041095,14]
[354554844,1740574243889,-825.65,0.00041095,14]
[354554845,1740574243898,-1514.4,0.00041095,14]
[354554847,1740574243907,-500.0,0.00041095,14]
[354554848,1740574243917,-1645.92,0.00041095,14]
[354554849,1740574243926,-500.0,0.00041095,14]
[354554851,1740574243936,-1776.84,0.00041095,14]
[354554852,1740574243945,-502.21568264,0.00041095,14]
[354554853,1740574243954,-1762.24,0.00041095,14]
[354554855,1740574243964,-500.0,0.00041095,14]
[354554856,1740574243973,-983.07,0.00041095,14]
[354554857,1740574243983,-856.64,0.00041095,14]
[354554859,1740574243992,-500.0,0.00041095,14]
[354554860,1740574244001,-500.0,0.00041095,14]
[354554861,1740574244011,-1554.29,0.00041095,14]
[354554863,1740574244020,-500.0,0.00041095,14]
[354554864,1740574244029,-500.0,0.00041095,14]
[354554865,1740574244038,-500.0,0.00041095,14]
[354554867,1740574244048,-500.0,0.00041095,14]
[354554868,1740574244058,-674.92,0.00041095,14]
[354554870,1740574244068,-500.0,0.00041095,14]
[354554871,1740574244077,-774.16,0.00041095,14]
[354554872,1740574244087,-542.4,0.00041095,14]
[354554874,1740574244097,-501.91818323,0.00041095,14]
[354554875,1740574244106,-504.88048986,0.00041095,14]
[354554876,1740574244116,-514.29,0.00041095,14]
[354554878,1740574244125,-500.0,0.00041095,14]
[354554879,1740574244135,-500.0,0.00041095,14]
[354554880,1740574244145,-500.0,0.00041095,14]
[354554882,1740574244155,-500.0,0.00041095,14]
[354554883,1740574244165,-500.0,0.00041095,14]
[354554884,1740574244175,-952.64,0.00041095,14]
[354554886,1740574244184,-580.19,0.00041095,14]
[354554887,1740574244193,-500.0,0.00041095,14]
[354554888,1740574244203,-504.95612259,0.00041095,14]
[354554890,1740574244213,-809.47,0.00041095,14]
[354554891,1740574244223,-1084.5,0.00041095,14]
[354554892,1740574244233,-500.0,0.00041095,14]
[354554894,1740574244242,-502.39750926,0.00041095,14]
[354554895,1740574244251,-1314.59,0.00041095,14]
[354554896,1740574244260,-500.0,0.00041095,14]
[354554897,1740574244270,-500.0,0.00041095,14]
[354554899,1740574244285,-500.0,0.00041095,14]
[354554900,1740574244295,-500.0,0.00041095,14]
[354554901,1740574244305,-500.0,0.00041095,14]
[354554903,1740574244315,-500.0,0.00041095,14]
[354554904,1740574244325,-1351.39,0.00041095,14]
[354554905,1740574244334,-500.0,0.00041095,14]
[354554907,1740574244345,-500.0,0.00041095,14]
[354554908,1740574244355,-500.0,0.00041095,14]
[354554909,1740574244365,-500.0,0.00041095,14]
[354554911,1740574244375,-500.0,0.00041095,14]
[354554912,1740574244384,-934.47,0.00041095,14]
[354554913,1740574244394,-500.0,0.00041095,30]
[354554914,1740574244404,-500.0,0.00041095,14]
[354554916,1740574244414,-1836.02,0.00041095,14]
[354554917,1740574244424,-480.81507914,0.00041095,14]
[354554918,1740574244433,-1430.64,0.00041095,14]
[354554919,1740574244443,-500.0,0.00041095,14]
[354554921,1740574244453,-500.0,0.00041095,14]
[354554922,1740574244462,-500.0,0.00041095,14]
[354554923,1740574244471,-1699.41,0.00041095,14]
[354554924,1740574244481,-500.0,0.00041095,14]
[354554926,1740574244492,-502.01718534,0.00041095,14]
[354554927,1740574244504,-500.0,0.00041095,14]
[354554928,1740574244515,-1145.9,0.00041095,14]
[354554929,1740574244526,-500.0,0.00041095,14]
[354554931,1740574244538,-500.0,0.00041095,14]
[354554932,1740574244550,-500.0,0.00041095,14]
[354554933,1740574244560,-500.0,0.00041095,14]
[354554935,1740574244571,-500.0,0.00041095,14]
[354554936,1740574244581,-1560.38,0.00041095,14]
[354554937,1740574244591,-500.0,0.00041095,14]
[354554938,1740574244604,-1035.66,0.00041095,14]
[354554939,1740574244614,-381.4166578,0.00041095,14]
[354554941,1740574244623,-500.0,0.00041095,14]
[354554942,1740574244633,-500.0,0.00041095,14]
[354554943,1740574244643,-510.17,0.00041095,14]
[354554944,1740574244652,-500.0,0.00041095,2]
[354554946,1740574244662,-500.0,0.00041095,14]
[354554947,1740574244671,-500.0,0.00041095,2]
[354554948,1740574244680,-521.2,0.00041095,14]
[354554949,1740574244690,-500.0,0.00041095,2]
[354554951,1740574244700,-200.0,0.00041095,7]
[354554952,1740574244710,-500.0,0.00041095,14]
[354554953,1740574244720,-500.0,0.00041095,14]
[354554954,1740574244729,-1639.86,0.00041095,14]
[354554956,1740574244739,-535.09,0.00041095,14]
[354554957,1740574244750,-500.0,0.00041095,14]
[354554958,1740574244759,-500.0,0.00041095,14]
[354554959,1740574244769,-500.0,0.00041095,14]
[354554961,1740574244779,-500.0,0.00041095,14]
[354554962,1740574244789,-500.0,0.00041095,14]
[354554963,1740574244800,-500.0,0.00041095,14]
[354554964,1740574244810,-500.0,0.00041095,14]
[354554965,1740574244820,-500.0,0.00041095,14]
[354554967,1740574244829,-778.23,0.00041095,14]
[354554968,1740574244839,-500.0,0.00041095,14]
[354554969,1740574244852,-1070.7,0.00041095,14]
[354554971,1740574244862,-500.0,0.00041095,14]
[354554972,1740574244872,-500.0,0.00041095,14]
[354554973,1740574244883,-564.49792574,0.00041095,14]
[354554974,1740574244894,-1301.52,0.00041095,14]
[354554975,1740574244904,-500.0,0.00041095,14]
[354554977,1740574244914,-885.47,0.00041095,14]
[354554978,1740574244924,-501.45814389,0.00041095,14]
[354554979,1740574244934,-500.0,0.00041095,14]
[354554982,1740574245018,-437.40349075,0.00041095,14]
[354554983,1740574245028,-500.0,0.00041095,14]
[354554985,1740574245039,-1244.11,0.00041095,14]
[354554986,1740574245048,-500.0,0.00041095,14]
[354554987,1740574245058,-500.344288,0.00041095,14]
[354554988,1740574245067,-500.0,0.00041095,14]
[354554990,1740574245076,-511.98411959,0.00041095,14]
[354554991,1740574245086,-1391.29,0.00041095,14]
[354554992,1740574245097,-501.36112653,0.00041095,14]
[354554993,1740574245106,-500.0,0.00041095,14]
[354554995,1740574245116,-500.0,0.00041095,14]
[354554996,1740574245126,-501.49337371,0.00041095,14]
[354554997,1740574245135,-1021.32,0.00041095,14]
[354554998,1740574245145,-2512.52,0.00041095,14]
[354554999,1740574245155,-688.14,0.00041095,14]
[354555001,1740574245164,-500.0,0.00041095,14]
[354555002,1740574245174,-500.90332981,0.00041095,14]
[354555003,1740574245184,-1058.45,0.00041095,14]
[354555004,1740574245194,-500.36590058,0.00041095,14]
[354555006,1740574245204,-500.0,0.00041095,14]
[354555007,1740574245214,-735.83,0.00041095,14]
[354555008,1740574245223,-500.0,0.00041095,14]
[354555009,1740574245232,-554.30340314,0.00041095,14]
[354555010,1740574245242,-536.27,0.00041095,14]
[354555012,1740574245251,-500.0,0.00041095,14]
[354555013,1740574245261,-500.0,0.00041095,14]
[354555014,1740574245270,-500.0,0.00041095,14]
[354555015,1740574245279,-500.0,0.00041095,14]
[354555017,1740574245289,-818.48,0.00041095,14]
[354555018,1740574245298,-2175.93,0.00041095,14]
[354555019,1740574245308,-500.0,0.00041095,14]
[354555020,1740574245317,-501.28800312,0.00041095,14]
[354555021,1740574245327,-615.79960358,0.00041095,14]
[354555023,1740574245336,-500.0,0.00041095,14]
[354555024,1740574245346,-501.42616355,0.00041095,14]
[354555025,1740574245356,-500.0,0.00041095,14]
[354555026,1740574245366,-1419.81,0.00041095,14]
[354555028,1740574245376,-287.2518729,0.00041095,14]
[354555029,1740574245385,-500.0,0.00041095,14]
[354555030,1740574245395,-500.0,0.00041095,14]
[354555031,1740574245405,-500.0,0.00041095,14]
[354555032,1740574245415,-3148.61,0.00041095,14]
[354555034,1740574245424,-500.0,0.00041095,14]
[354555035,1740574245435,-507.63385221,0.00041095,14]
[354555036,1740574245445,-500.0,0.00041095,14]
[354555037,1740574245455,-694.45,0.00041095,14]
[354555039,1740574245464,-1187.47,0.00041095,14]
[354555040,1740574245474,-504.68993788,0.00041095,14]
[354555041,1740574245484,-290.71696068,0.00041095,14]
[354555042,1740574245493,-626.25,0.00041095,14]
[354555044,1740574245508,-500.0,0.00041095,14]
[354555045,1740574245518,-503.26889779,0.00041095,14]
[354555046,1740574245527,-1084.14,0.00041095,14]
[354555047,1740574245537,-500.0,0.00041095,14]
[354555048,1740574245547,-501.25414693,0.00041095,14]
[354555050,1740574245556,-1812.38,0.00041095,14]
[354555051,1740574245566,-500.0,0.00041095,14]
[354555052,1740574245578,-500.0,0.00041095,14]
[354555053,1740574245588,-501.35472523,0.00041095,14]
[354555055,1740574245600,-1891.14,0.00041095,14]
[354555056,1740574245609,-500.0,0.00041095,14]
[354555057,1740574245619,-500.0,0.00041095,14]
[354555058,1740574245629,-1498.69,0.00041095,14]
[354555060,1740574245638,-1496.71,0.00041095,14]
[354555061,1740574245647,-606.64,0.00041095,14]
[354555062,1740574245657,-1483.3,0.00041095,14]
[354555063,1740574245668,-500.0,0.00041095,14]
[354555064,1740574245677,-500.0,0.00041095,14]
[354555066,1740574245686,-1267.25,0.00041095,14]
[354555067,1740574245696,-1566.7,0.00041095,14]
[354555068,1740574245706,-812.56,0.00041095,14]
[354555070,1740574245716,-500.0,0.00041095,14]
[354555073,1740574245725,-500.0,0.00041095,14]
[354555074,1740574245734,-1162.33,0.00041095,14]
[354555075,1740574245744,-504.48956043,0.00041095,14]
[354555076,1740574245754,-847.91,0.00041095,14]
[354555078,1740574245764,-672.65,0.00041095,14]
[354555079,1740574245773,-500.0,0.00041095,14]
[354555080,1740574245783,-1999.54,0.00041095,14]
[354555081,1740574245793,-500.0,0.00041095,14]
[354555083,1740574245803,-2918.9,0.00041095,14]
[354555084,1740574245812,-500.0,0.00041095,14]
[354555085,1740574245822,-500.0,0.00041095,14]
[354555086,1740574245831,-500.0,0.00041095,14]
[354555087,1740574245841,-2461.64,0.00041095,14]
[354555089,1740574245852,-505.03158004,0.00041095,14]
[354555090,1740574245862,-1054.04,0.00041095,14]
[354555091,1740574245872,-428.99632715,0.00041095,14]
[354555092,1740574245881,-500.0,0.00041095,14]
[354555094,1740574245891,-453.63395228,0.00041095,14]
[354555095,1740574245901,-2154.95,0.00041095,14]
[354555096,1740574245912,-1409.25,0.00041095,14]
[354555097,1740574245922,-500.0,0.00041095,14]
[354555099,1740574245933,-1195.51,0.00041095,14]
[354555100,1740574245942,-500.0,0.00041095,14]
[354555101,1740574245951,-500.0,0.00041095,14]
[354555102,1740574245962,-500.0,0.00041095,14]
[354555103,1740574245971,-523.40470587,0.00041095,14]
[354555105,1740574245980,-501.34171887,0.00041095,14]
[354555106,1740574245990,-1319.88,0.00041095,14]
[354555107,1740574245999,-519.69405329,0.00041095,14]
[354555108,1740574246008,-727.34,0.00041095,14]
[354555110,1740574246024,-1198.01,0.00041095,14]
[354555111,1740574246034,-634.29,0.00041095,14]
[354555112,1740574246043,-879.08,0.00041095,14]
[354555113,1740574246053,-190.99533952,0.00041095,14]
[354555115,1740574246062,-1657.95,0.00041095,14]
[354555116,1740574246071,-1710.29,0.00041095,14]
[354555117,1740574246081,-2325.13,0.00041095,14]
[354555118,1740574246090,-506.41520772,0.00041095,14]
[354555119,1740574246101,-231.06541932,0.00041095,14]
[354555121,1740574246111,-500.0,0.00041095,14]
[354555122,1740574246120,-1131.2,0.00041095,14]
[354555123,1740574246130,-650.2,0.00041095,14]
[354555124,1740574246139,-2026.83,0.00041095,14]
[354555126,1740574246148,-1603.84,0.00041095,14]
[354555127,1740574246157,-502.33708255,0.00041095,14]
[354555128,1740574246167,-1456.03,0.00041095,14]
[354555129,1740574246176,-500.0,0.00041095,14]
[354555131,1740574246186,-500.0,0.00041095,14]
[354555132,1740574246196,-500.0,0.00041095,14]
[354555133,1740574246205,-638.24,0.00041095,14]
[354555134,1740574246214,-2246.07,0.00041095,14]
[354555135,1740574246224,-500.0,0.00041095,14]
[354555137,1740574246233,-500.0,0.00041095,14]
[354555138,1740574246242,-743.99,0.00041095,14]
[354555139,1740574246252,-500.0,0.00041095,14]
[354555140,1740574246261,-503.06970952,0.00041095,14]
[354555142,1740574246271,-971.18,0.00041095,14]
[354555143,1740574246281,-2523.94,0.00041095,14]
[354555144,1740574246291,-500.0,0.00041095,14]
[354555145,1740574246300,-881.31,0.00041095,14]
[354555147,1740574246310,-151.0,0.00041095,14]
[354555148,1740574246319,-1557.14,0.00041095,14]
[354555149,1740574246329,-1466.79,0.00041095,14]
[354555150,1740574246338,-504.63740322,0.00041095,14]
[354555151,1740574246350,-1096.55,0.00041095,14]
[354555153,1740574246359,-500.0,0.00041095,14]
[354555154,1740574246370,-917.11,0.00041095,14]
[354555155,1740574246380,-553.17,0.00041095,14]
[354555156,1740574246389,-500.0,0.00041095,14]
[354555158,1740574246398,-664.58,0.00041095,14]
[354555159,1740574246408,-421.51758981,0.00041095,14]
[354555160,1740574246417,-1643.93,0.00041095,14]
[354555161,1740574246427,-500.0,0.00041095,14]
[354555163,1740574246436,-1045.05,0.00041095,14]
[354555164,1740574246448,-1760.23,0.00041095,14]
[354555165,1740574246457,-500.0,0.00041095,14]
[354555166,1740574246466,-882.26,0.00041095,14]
[354555168,1740574246476,-825.28,0.00041095,14]
[354555169,1740574246485,-500.0,0.00041095,14]
[354555170,1740574246494,-500.0,0.00041095,14]
[354555171,1740574246504,-500.0,0.00041095,14]
[354555173,1740574246517,-500.0,0.00041095,14]
[354555174,1740574246527,-509.41621109,0.00041095,14]
[354555175,1740574246538,-1955.03,0.00041095,14]
[354555176,1740574246547,-500.0,0.00041095,14]
[354555178,1740574246557,-500.0,0.00041095,14]
[354555179,1740574246566,-591.7,0.00041095,14]
[354555180,1740574246575,-491.32406986,0.00041095,7]
[354555181,1740574246585,-500.0,0.00041095,14]
[354555182,1740574246596,-2374.77,0.00041095,14]
[354555184,1740574246605,-962.99,0.00041095,14]
[354555185,1740574246615,-500.0,0.00041095,14]
[354555186,1740574246624,-585.5,0.00041095,14]
[354555187,1740574246634,-500.0,0.00041095,14]
[354555189,1740574246643,-500.0,0.00041095,14]
[354555190,1740574246652,-501.61004261,0.00041095,14]
[354555191,1740574246661,-500.0,0.00041095,14]
[354555192,1740574246671,-500.0,0.00041095,14]
[354555193,1740574246680,-500.0,0.00041095,14]
[354555195,1740574246689,-503.43223412,0.00041095,14]
[354555196,1740574246698,-500.0,0.00041095,14]
[354555197,1740574246708,-1000.0,0.00041095,120]
[354555198,1740574246717,-500.0,0.00041095,14]
[354555200,1740574246727,-500.0,0.00041095,14]
[354555201,1740574246736,-500.0,0.00041095,14]
[354555202,1740574246746,-500.0,0.00041095,14]
[354555203,1740574246755,-500.0,0.00041095,14]
[354555205,1740574246765,-500.0,0.00041095,14]
[354555206,1740574246774,-181.61026189,0.00041095,14]
[354555207,1740574246783,-500.0,0.00041095,14]
[354555208,1740574246792,-1527.45,0.00041095,14]
[354555209,1740574246802,-500.0,0.00041095,14]
[354555211,1740574246811,-1955.87,0.00041095,14]
[354555212,1740574246820,-1595.95,0.00041095,14]
[354555213,1740574246830,-1142.9,0.00041095,14]
[354555214,1740574246839,-500.0,0.00041095,14]
[354555215,1740574246849,-500.0,0.00041095,14]
[354555216,1740574246859,-500.0,0.00041095,14]
[354555217,1740574246868,-2015.41,0.00041095,14]
[354555218,1740574246878,-1727.7,0.00041095,14]
[354555219,1740574246888,-790.73,0.00041095,14]
[354555220,1740574246898,-1058.94,0.00041095,14]
[354555221,1740574246907,-1341.53,0.00041095,14]
[354555222,1740574246916,-500.0,0.00041095,14]
[354555223,1740574246926,-500.0,0.00041095,14]
[354555224,1740574246936,-500.0,0.00041095,14]
[354555225,1740574246945,-500.0,0.00041095,14]
[354555226,1740574246955,-500.0,0.00041095,14]
[354555228,1740574246965,-500.0,0.00041095,14]
[354555229,1740574246974,-1163.29,0.00041095,14]
[354555230,1740574246984,-500.0,0.00041095,14]
[354555231,1740574246993,-1036.03,0.00041095,14]
[354555233,1740574247003,-2668.14,0.00041095,14]
[354555234,1740574247011,-502.9953578,0.00041095,14]
[354555235,1740574247021,-500.0,0.00041095,14]
[354555236,1740574247030,-2791.27,0.00041095,14]
[354555237,1740574247040,-500.0,0.00041095,14]
[354555239,1740574247049,-506.63010741,0.00041095,14]
[354555240,1740574247058,-1106.65,0.00041095,14]
[354555241,1740574247067,-1409.3,0.00041095,14]
[354555242,1740574247077,-500.0,0.00041095,14]
[354555244,1740574247086,-500.0,0.00041095,14]
[354555245,1740574247095,-500.0,0.00041095,14]
[354555246,1740574247105,-500.0,0.00041095,14]
[354555247,1740574247115,-1074.29,0.00041095,14]
[354555248,1740574247125,-697.19,0.00041095,14]
[354555250,1740574247135,-1444.59,0.00041095,14]
[354555251,1740574247144,-391.90088291,0.00041095,14]
[354555252,1740574247154,-500.0,0.00041095,14]
[354555253,1740574247163,-1757.46,0.00041095,14]
[354555255,1740574247172,-1545.48,0.00041095,14]
[354555256,1740574247182,-500.0,0.00041095,14]
[354555257,1740574247192,-500.0,0.00041095,14]
[354555258,1740574247201,-1191.57,0.00041095,14]
[354555260,1740574247211,-1345.37,0.00041095,14]
[354555261,1740574247220,-500.0,0.00041095,14]
[354555262,1740574247229,-691.68,0.00041095,14]
[354555263,1740574247239,-500.0,0.00041095,14]
[354555264,1740574247248,-500.0,0.00041095,14]
[354555266,1740574247257,-500.0,0.00041095,14]
[354555267,1740574247267,-950.59,0.00041095,14]
[354555268,1740574247276,-1425.97,0.00041095,14]
[354555269,1740574247285,-5017.67,0.00041095,14]
[354555270,1740574247294,-500.0,0.00041095,14]
[354555272,1740574247303,-500.0,0.00041095,14]
[354555273,1740574247312,-847.2,0.00041095,14]
[354555274,1740574247322,-696.84,0.00041095,14]
[354555275,1740574247331,-501.94992629,0.00041095,14]
[354555277,1740574247340,-470.72632584,0.00041095,14]
[354555278,1740574247351,-928.45,0.00041095,14]
[354555279,1740574247360,-5061.49743836,0.00041095,14]
[354555280,1740574247369,-1582.78,0.00041095,14]
[354555281,1740574247378,-1603.54,0.00041095,14]
[354555283,1740574247388,-2298.0,0.00041095,14]
[354555284,1740574247397,-240.13967082,0.00041095,14]
[354555285,1740574247407,-2568.74,0.00041095,14]
[354555286,1740574247416,-500.0,0.00041095,14]
[354555288,1740574247425,-821.14,0.00041095,14]
[354555289,1740574247435,-501.23160092,0.00041095,14]
[354555290,1740574247444,-500.0,0.00041095,14]
[354555291,1740574247453,-500.0,0.00041095,14]
[354555293,1740574247463,-500.0,0.00041095,14]
[354555294,1740574247472,-624.89,0.00041095,14]
[354555295,1740574247483,-500.0,0.00041095,14]
[354555296,1740574247492,-610.91,0.00041095,14]
[354555298,1740574247502,-510.90654863,0.00041095,14]
[354555299,1740574247513,-500.0,0.00041095,14]
[354555300,1740574247523,-500.0,0.00041095,14]
[354555301,1740574247534,-500.0,0.00041095,14]
[354555302,1740574247544,-2578.15,0.00041095,14]
[354555304,1740574247552,-500.0,0.00041095,14]
[354555305,1740574247562,-3156.32,0.00041095,14]
[354555306,1740574247571,-1146.73,0.00041095,14]
[354555307,1740574247581,-569.38,0.00041095,14]
[354555309,1740574247590,-500.0,0.00041095,14]
[354555310,1740574247601,-501.07852769,0.00041095,14]
[354555311,1740574247610,-1105.2,0.00041095,14]
[354555312,1740574247619,-500.0,0.00041095,14]
[354555314,1740574247628,-500.0,0.00041095,14]
[354555315,1740574247637,-1570.42,0.00041095,14]
[354555316,1740574247647,-823.13,0.00041095,14]
[354555317,1740574247656,-678.3,0.00041095,14]
[354555319,1740574247666,-1961.2,0.00041095,14]
[354555320,1740574247675,-605.66900272,0.00041095,14]
[354555321,1740574247685,-500.0,0.00041095,14]
[354555322,1740574247694,-2032.6,0.00041095,14]
[354555323,1740574247704,-1087.49,0.00041095,14]
[354555325,1740574247713,-500.0,0.00041095,14]
[354555326,1740574247723,-647.93,0.00041095,14]
[354555327,1740574247732,-500.0,0.00041095,14]
[354555328,1740574247742,-1104.4,0.00041095,14]
[354555330,1740574247751,-500.0,0.00041095,14]
[354555331,1740574247761,-500.0,0.00041095,14]
[354555332,1740574247770,-500.0,0.00041095,14]
[354555333,1740574247779,-500.0,0.00041095,14]
[354555335,1740574247788,-500.0,0.00041095,14]
[354555336,1740574247797,-1872.57,0.00041095,14]
[354555337,1740574247806,-1063.06,0.00041095,14]
[354555338,1740574247816,-500.0,0.00041095,14]
[354555340,1740574247825,-500.0,0.00041095,14]
[354555341,1740574247835,-500.0,0.00041095,14]
[354555342,1740574247846,-500.0,0.00041095,2]
[354555343,1740574247856,-500.0,0.00041095,2]
[354555345,1740574247865,-511.86387147,0.00041095,14]
[354555346,1740574247875,-500.0,0.00041095,2]
[354555347,1740574247884,-500.0,0.00041095,14]
[354555348,1740574247894,-500.0,0.00041095,14]
[354555349,1740574247903,-500.0,0.00041095,14]
[354555351,1740574247913,-500.0,0.00041095,14]
[354555352,1740574247922,-500.66,0.00041095,14]
[354555353,1740574247931,-619.6,0.00041095,14]
[354555354,1740574247941,-756.41,0.00041095,14]
[354555356,1740574247951,-500.0,0.00041095,14]
[354555357,1740574247960,-500.0,0.00041095,14]
[354555358,1740574247969,-502.76055947,0.00041095,14]
[354555359,1740574247979,-2475.12,0.00041095,14]
[354555361,1740574247989,-501.82886592,0.00041095,14]
[354555362,1740574247997,-500.0,0.00041095,14]
[354555363,1740574248007,-500.0,0.00041095,14]
[354555364,1740574248016,-500.0,0.00041095,14]
[354555366,1740574248026,-500.0,0.00041095,14]
[354555367,1740574248035,-1179.48,0.00041095,14]
[354555368,1740574248045,-1724.37,0.00041095,14]
[354555369,1740574248054,-501.64865322,0.00041095,14]
[354555371,1740574248063,-1227.13,0.00041095,14]
[354555372,1740574248073,-1330.19,0.00041095,14]
[354555373,1740574248082,-500.0,0.00041095,14]
[354555374,1740574248091,-500.0,0.00041095,14]
[354555376,1740574248103,-500.0,0.00041095,14]
[354555377,1740574248112,-500.0,0.00041095,14]
[354555378,1740574248121,-584.95,0.00041095,14]
[354555379,1740574248130,-500.0,0.00041095,14]
[354555381,1740574248139,-500.0,0.00041095,14]
[354555382,1740574248148,-505.78098895,0.00041095,14]
[354555383,1740574248157,-2372.45,0.00041095,14]
[354555384,1740574248167,-500.0,0.00041095,14]
[354555385,1740574248176,-673.8,0.00041095,14]
[354555387,1740574248186,-500.0,0.00041095,14]
[354555388,1740574248195,-215.75252992,0.00041095,14]
[354555389,1740574248205,-2444.59,0.00041095,14]
[354555390,1740574248214,-500.0,0.00041095,14]
[354555392,1740574248224,-3529.85,0.00041095,14]
[354555393,1740574248233,-500.0,0.00041095,14]
[354555394,1740574248242,-500.0,0.00041095,14]
[354555395,1740574248251,-538.02,0.00041095,14]
[354555397,1740574248261,-500.0,0.00041095,14]
[354555398,1740574248271,-505.560152,0.00041095,14]
[354555399,1740574248280,-500.0,0.00041095,14]
[354555400,1740574248290,-1209.49,0.00041095,14]
[354555402,1740574248299,-983.67,0.00041095,14]
[354555403,1740574248308,-500.0,0.00041095,14]
[354555404,1740574248318,-1500.98,0.00041095,14]
[354555405,1740574248327,-500.0,0.00041095,14]
[354555406,1740574248337,-901.53,0.00041095,14]
[354555408,1740574248347,-515.02750161,0.00041095,14]
[354555409,1740574248357,-1420.08,0.00041095,14]
[354555410,1740574248367,-500.0,0.00041095,14]
[354555411,1740574248376,-2314.83,0.00041095,14]
[354555413,1740574248385,-500.0,0.00041095,14]
[354555414,1740574248394,-500.0,0.00041095,14]
[354555415,1740574248404,-500.0,0.00041095,14]
[354555416,1740574248414,-2050.0,0.00041095,14]
[354555417,1740574248423,-500.0,0.00041095,14]
[354555419,1740574248433,-500.0,0.00041095,14]
[354555420,1740574248443,-510.15846038,0.00041095,14]
[354555421,1740574248452,-1281.21,0.00041095,14]
[354555422,1740574248462,-1735.4,0.00041095,14]
[354555423,1740574248472,-511.25,0.00041095,14]
[354555425,1740574248483,-579.58,0.00041095,14]
[354555426,1740574248494,-500.0,0.00041095,14]
[354555427,1740574248505,-257.99057943,0.00041095,14]
[354555428,1740574248515,-500.0,0.00041095,14]
[354555430,1740574248525,-500.0,0.00041095,14]
[354555431,1740574248535,-500.0,0.00041095,14]
[354555432,1740574248546,-1942.92,0.00041095,14]
[354555433,1740574248555,-500.0,0.00041095,14]
[354555434,1740574248565,-500.0,0.00041095,14]
[354555436,1740574248574,-500.0,0.00041095,14]
[354555437,1740574248584,-1668.57,0.00041095,14]
[354555438,1740574248598,-500.0,0.00041095,14]
[354555439,1740574248608,-500.0,0.00041095,2]
[354555441,1740574248619,-669.0,0.00041095,2]
[354555442,1740574248630,-529.49,0.00041095,14]
[354555443,1740574248640,-1899.64,0.00041095,14]
[354555444,1740574248651,-1053.46,0.00041095,14]
[354555445,1740574248660,-500.0,0.00041095,14]
[354555447,1740574248671,-1050.4,0.00041095,14]
[354555448,1740574248681,-1488.98,0.00041095,14]
[354555449,1740574248691,-500.0,0.00041095,14]
[354555450,1740574248702,-1080.14,0.00041095,14]
[354555452,1740574248712,-501.61663579,0.00041095,14]
[354555453,1740574248722,-500.0,0.00041095,14]
[354555454,1740574248731,-500.0,0.00041095,14]